bitfinex-derivatives/quotes_SOLF0:USTF0_20241120
["timestamp","ask_amount","ask_price","bid_price","bid_amount"]
[1732066861373,25.32506898,236.61,236.46,10.28506898]
[1732066861575,25.32506898,236.61,236.45,2.34]
[1732066861576,25.32506898,236.61,236.49,10.28506898]
[1732066861875,2.1111,236.53,236.49,10.28506898]
[1732066862569,2.1111,236.52,236.46,10.28506898]
[1732066863670,2.1111,236.52,236.48,2.1114]
[1732066863874,2.1111,236.52,236.46,10.28506898]
[1732066864074,2.1111,236.52,236.46,12.39656898]
[1732066864274,22.98506898,236.58,236.44,2.4834]
[1732066865471,22.98506898,236.58,236.45,2.1117]
[1732066865876,2.1113,236.5,236.45,2.1117]
[1732066866877,2.1114,236.49,236.44,4.5952]
[1732066867879,2.34,236.58,236.46,10.28506898]
[1732066868073,12.7,236.63,236.49,10.28506898]
[1732066868371,38.99205809,236.68,236.48,2.34]
[1732066868372,2.1106,236.58,236.48,2.34]
[1732066868571,10.75151883,236.6,236.48,2.34]
[1732066868976,2.34,236.6,236.49,10.28506898]
[1732066870278,2.34,236.6,236.51,2.1111]
[1732066871371,2.34,236.6,236.46,10.28506898]
[1732066871578,2.34,236.6,236.47,2.1114]
[1732066872173,2.34,236.6,236.46,10.28506898]
[1732066872174,2.34,236.6,236.48,2.1114]
[1732066872373,2.34,236.6,236.49,10.28506898]
[1732066872579,2.1107,236.57,236.49,10.28506898]
[1732066872779,2.1107,236.57,236.52,2.1111]
[1732066872974,2.1107,236.57,236.49,10.28506898]
[1732066873177,2.1107,236.57,236.45,2.34]
[1732066873178,2.1107,236.57,236.52,10.28506898]
[1732066873877,2.1107,236.57,236.52,12.39606898]
[1732066874477,2.34,236.6,236.52,12.39606898]
[1732066874678,2.1107,236.56,236.52,12.39606898]
[1732066875271,2.34,236.6,236.49,12.39636898]
[1732066875475,2.34,236.6,236.49,10.28506898]
[1732066875674,22.98506898,236.64,236.52,10.28506898]
[1732066875880,2.1106,236.58,236.53,2.1109]
[1732066876576,8.42861732,236.57,236.53,2.1109]
[1732066877079,15.04,236.63,236.49,10.28506898]
[1732066877276,18.38632049,236.62,236.49,10.28506898]
[1732066877472,18.38632049,236.61,236.49,10.28506898]
[1732066877781,18.38632049,236.6,236.51,2.1111]
[1732066877980,2.1108,236.56,236.51,2.1111]
[1732066878176,15.04,236.63,236.49,10.28506898]
[1732066878373,18.39181682,236.62,236.49,10.28506898]
[1732066878780,2.1107,236.56,236.49,10.28506898]
[1732066879888,2.1107,236.56,236.52,10.28506898]
[1732066881576,2.1107,236.56,236.51,2.1112]
[1732066881975,2.1108,236.55,236.51,2.1112]
[1732066882675,2.1108,236.55,236.5,2.1112]
[1732066882881,2.1108,236.55,236.49,10.28506898]
[1732066883085,10.28506898,236.61,236.46,10.28506898]
[1732066883383,2.111,236.53,236.48,2.1114]
[1732066885182,2.111,236.53,236.49,2.1113]
[1732066887879,22.98506898,236.61,236.46,10.28506898]
[1732066888078,22.98506898,236.58,236.44,4.8234]
[1732066888287,23.47516864,236.57,236.44,4.8234]
[1732066888482,8.43516864,236.56,236.44,2.4834]
[1732066888985,10.28506898,236.55,236.43,11.57956898]
[1732066889188,8.43516864,236.54,236.43,11.57956898]
[1732066889388,8.43516864,236.54,236.43,1.2945]
[1732066889586,2.1115,236.47,236.43,3.4063]
[1732066889784,10.28506898,236.58,236.43,11.57956898]
[1732066890096,2.111,236.53,236.46,10.28506898]
[1732066890682,2.34,236.56,236.46,10.28506898]
[1732066890885,8.43211222,236.55,236.46,10.28506898]
[1732066891493,2.111,236.53,236.48,2.1114]
[1732066891691,2.34,236.56,236.49,10.28506898]
[1732066892092,2.34,236.56,236.44,2.4815]
[1732066892093,2.1107,236.57,236.52,10.28506898]
[1732066892387,16.2779,236.62,236.52,10.28506898]
[1732066892587,2.5354,236.66,236.55,10.28506898]
[1732066892789,18.40168591,236.65,236.55,10.28506898]
[1732066892987,18.40168591,236.64,236.55,10.28506898]
[1732066893188,8.43764076,236.63,236.55,10.28506898]
[1732066893389,31.42270974,236.66,236.52,10.28506898]
[1732066893587,22.66472851,236.65,236.52,10.28506898]
[1732066893792,22.66472851,236.64,236.49,10.28506898]
[1732066893988,2.1107,236.56,236.51,2.1112]
[1732066894190,2.34,236.6,236.49,12.62506898]
[1732066894596,6.58405905,236.59,236.51,6.58405905]
[1732066895796,2.34,236.6,236.53,6.58405905]
[1732066896492,2.34,236.6,236.55,6.58405905]
[1732066897297,2.34,236.6,236.53,6.58405905]
[1732066897999,2.1107,236.57,236.53,6.58405905]
[1732066898198,2.34,236.6,236.53,6.58405905]
[1732066898694,2.1107,236.56,236.53,6.58405905]
[1732066898893,2.1107,236.56,236.44,2.4815]
[1732066898894,6.58405905,236.55,236.44,2.4815]
[1732066899093,8.43654418,236.54,236.47,6.58405905]
[1732066899699,2.1112,236.51,236.47,6.58405905]
[1732066900500,2.1112,236.51,236.49,6.58405905]
[1732066900701,2.5101,236.59,236.49,6.58405905]
[1732066900897,18.39750887,236.58,236.52,6.58405905]
[1732066901203,9.96174644,236.57,236.52,6.58405905]
[1732066901598,9.96174644,236.57,236.54,6.58405905]
[1732066901798,8.43576243,236.58,236.54,6.58405905]
[1732066901993,2.1107,236.56,236.54,6.58405905]
[1732066902394,6.58405905,236.61,236.54,6.58405905]
[1732066902601,2.1106,236.58,236.56,6.58405905]
[1732066902800,8.43373773,236.6,236.56,6.58405905]
[1732066903104,2.1106,236.58,236.56,6.58405905]
[1732066903299,8.43373773,236.6,236.56,6.58405905]
[1732066903803,8.43373773,236.57,236.56,6.58405905]
[1732066904102,8.43373773,236.62,236.56,6.58405905]
[1732066904304,2.1107,236.57,236.54,6.58405905]
[1732066905896,2.1107,236.57,236.52,2.1111]
[1732066906096,2.1107,236.57,236.54,6.58405905]
[1732066910312,6.58405905,236.61,236.54,6.58405905]
[1732066910514,8.43574874,236.6,236.54,6.58405905]
[1732066911113,8.43574874,236.6,236.48,2.34]
[1732066911114,2.34,236.63,236.56,6.58405905]
[1732066911317,2.1104,236.61,236.56,6.58405905]
[1732066911614,8.43790826,236.62,236.56,6.58405905]
[1732066911810,2.1103,236.61,236.57,2.1106]
[1732066912005,10.54820826,236.61,236.56,6.58405905]
[1732066912209,32.1816137,236.76,236.6,6.58405905]
[1732066912210,8.43790826,236.63,236.6,6.58405905]
[1732066912412,2.11,236.65,236.62,6.58405905]
[1732066913011,10.19265905,236.7,236.62,6.58405905]
[1732066913012,18.41402182,236.67,236.62,6.58405905]
[1732066913213,10.19265905,236.7,236.62,6.58405905]
[1732066913214,8.44323074,236.66,236.62,6.58405905]
[1732066913515,8.44323074,236.65,236.6,6.58405905]
[1732066913712,8.44323074,236.64,236.6,6.58405905]
[1732066913909,8.44323074,236.63,236.6,6.58405905]
[1732066914116,8.44323074,236.63,236.56,2.34]
[1732066914117,8.44323074,236.63,236.62,6.58405905]
[1732066914313,8.44323074,236.67,236.62,6.58405905]
[1732066914516,29.46312552,236.71,236.64,6.58405905]
[1732066914809,8.92405905,236.72,236.6,10.27674434]
[1732066914810,8.44132063,236.7,236.6,10.27674434]
[1732066915010,2.34,236.72,236.61,2.1103]
[1732066915011,2.1097,236.68,236.61,2.1103]
[1732066915216,9.96812523,236.7,236.61,2.1103]
[1732066915413,8.44132063,236.69,236.61,2.1103]
[1732066915806,8.44132063,236.69,236.6,10.27674434]
[1732066915807,10.55092063,236.69,236.62,2.1102]
[1732066916010,10.55092063,236.69,236.6,10.27674434]
[1732066916011,8.44132063,236.69,236.6,10.27674434]
[1732066916210,8.44132063,236.68,236.6,10.27674434]
[1732066916411,8.44132063,236.67,236.6,10.27674434]
[1732066916613,2.11,236.64,236.59,2.1104]
[1732066916816,8.4349932,236.65,236.57,16.27144434]
[1732066917010,8.4349932,236.64,236.57,16.27144434]
[1732066917213,25.31674434,236.72,236.57,16.27144434]
[1732066917408,2.1098,236.67,236.6,12.38714434]
[1732066917612,18.3933457,236.7,236.6,10.27674434]
[1732066917818,18.3933457,236.69,236.6,10.27674434]
[1732066918018,2.11,236.64,236.6,12.38704434]
[1732066918219,2.34,236.72,236.6,10.27674434]
[1732066918418,18.39056127,236.71,236.6,10.27674434]
[1732066918619,2.11,236.64,236.6,10.27674434]
[1732066920716,2.34,236.72,236.6,12.38714434]
[1732066920919,8.43167761,236.71,236.6,12.38714434]
[1732066921113,8.43167761,236.71,236.6,10.27674434]
[1732066921518,2.1098,236.67,236.63,2.1101]
[1732066922022,2.1098,236.67,236.63,12.38684434]
[1732066923421,2.1098,236.67,236.63,10.27674434]
[1732066923616,8.42590402,236.72,236.63,10.27674434]
[1732066923813,8.42590402,236.71,236.63,10.27674434]
[1732066924018,2.34,236.74,236.63,10.27674434]
[1732066924218,8.42808674,236.73,236.63,10.27674434]
[1732066924415,2.1096,236.69,236.64,2.11]
[1732066925318,2.1095,236.7,236.66,10.27674434]
[1732066925621,8.42808674,236.74,236.66,10.27674434]
[1732066925817,8.42808674,236.72,236.63,2.34]
[1732066926014,2.34,236.78,236.65,10.27674434]
[1732066926211,8.42468401,236.77,236.65,10.27674434]
[1732066926411,2.1092,236.74,236.67,2.1097]
[1732066926634,8.42468401,236.77,236.67,2.1097]
[1732066927116,2.1093,236.73,236.67,2.1097]
[1732066927918,2.1093,236.72,236.67,2.1097]
[1732066928714,2.1096,236.69,236.66,1.241]
[1732066928913,25.31674434,236.78,236.61,10.27674434]
[1732066929125,10.27674434,236.75,236.61,10.27674434]
[1732066929315,18.37765679,236.74,236.61,10.27674434]
[1732066929514,18.37765679,236.73,236.61,10.27674434]
[1732066929718,10.76689028,236.72,236.61,10.27674434]
[1732066929918,2.1099,236.65,236.61,12.38704434]
[1732066930918,2.1098,236.66,236.61,12.38704434]
[1732066932320,2.34,236.72,236.61,10.27674434]
[1732066932524,2.1097,236.68,236.64,10.27674434]
[1732066933226,2.1098,236.67,236.61,10.27674434]
[1732066933625,2.1098,236.67,236.62,2.1102]
[1732066934120,8.42740002,236.71,236.62,2.1102]
[1732066934322,8.42740002,236.71,236.61,10.27674434]
[1732066934517,8.42740002,236.71,236.64,12.38674434]
[1732066934718,8.42740002,236.71,236.64,10.27674434]
[1732066934925,2.34,236.76,236.64,10.27674434]
[1732066934926,2.34,236.76,236.66,2.1098]
[1732066935118,8.43151051,236.75,236.64,10.27674434]
[1732066935425,2.1095,236.71,236.64,10.27674434]
[1732066935927,2.34,236.76,236.68,2.1096]
[1732066936821,2.34,236.76,236.71,6.57323494]
[1732066937326,2.1092,236.74,236.71,6.57323494]
[1732066938525,2.08412839,236.82,236.71,6.57323494]
[1732066938724,6.57323494,236.82,236.75,6.57323494]
[1732066938925,18.38516403,236.81,236.75,6.57323494]
[1732066939122,8.43039685,236.8,236.75,6.57323494]
[1732066939324,8.43039685,236.81,236.73,6.57323494]
[1732066939524,15.00363179,236.8,236.73,6.57323494]
[1732066939730,2.1092,236.74,236.73,6.57323494]
[1732066941735,2.109,236.76,236.73,6.57323494]
[1732066941928,2.109,236.76,236.75,6.57323494]
[1732066942733,8.42654612,236.79,236.73,6.57323494]
[1732066942930,2.1095,236.7,236.67,3.6594]
[1732066943127,2.1095,236.7,236.69,6.57323494]
[1732066943530,2.1095,236.7,236.67,3.6594]
[1732066943924,2.1094,236.72,236.69,6.57323494]
[1732066944331,8.42551909,236.77,236.71,6.57323494]
[1732066944630,2.1091,236.75,236.71,8.68263494]
[1732066944835,2.1091,236.75,236.71,6.57323494]
[1732066945436,2.1091,236.75,236.73,6.57323494]
[1732066945838,2.1091,236.74,236.73,6.57323494]
[1732066946836,2.1091,236.74,236.71,6.57323494]
[1732066947235,6.57323494,236.78,236.71,6.57323494]
[1732066947438,2.1093,236.72,236.71,6.57323494]
[1732066948340,8.91323494,236.8,236.71,6.57323494]
[1732066948539,8.43166075,236.79,236.71,6.57323494]
[1732066949232,2.1092,236.74,236.71,6.57323494]
[1732066949431,8.91323494,236.8,236.71,6.57323494]
[1732066949733,2.1092,236.74,236.71,6.57323494]
[1732066950540,2.1092,236.73,236.69,2.1095]
[1732066951134,2.34,236.8,236.72,6.57323494]
[1732066951341,2.1092,236.74,236.72,6.57323494]
[1732066952639,8.91323494,236.8,236.72,6.57323494]
[1732066952849,6.57323494,236.76,236.67,2.4738]
[1732066953041,6.57323494,236.76,236.69,6.57323494]
[1732066953042,8.43286372,236.75,236.69,6.57323494]
[1732066953442,8.43286372,236.75,236.67,2.4738]
[1732066953641,8.43286372,236.75,236.68,6.57323494]
[1732066954439,2.1093,236.72,236.71,6.57323494]
[1732066954746,206.56280855,236.8,236.71,6.57323494]
[1732066954944,206.56280855,236.8,236.67,2.4738]
[1732066954945,18.39725282,236.79,236.74,6.57323494]
[1732066955145,18.39725282,236.78,236.74,6.57323494]
[1732066955347,2.109,236.75,236.74,6.57323494]
[1732066955745,2.109,236.75,236.72,6.57323494]
[1732066956352,2.1091,236.74,236.72,6.57323494]
[1732066956544,8.4359685,236.76,236.69,6.57323494]
[1732066956850,18.40250237,236.76,236.69,6.57323494]
[1732066957050,2.1091,236.74,236.73,6.57323494]
[1732066957549,2.1091,236.74,236.71,6.57323494]
[1732066958252,2.1093,236.73,236.71,6.57323494]
[1732066958552,6.57323494,236.78,236.71,6.57323494]
[1732066958742,18.41639441,236.77,236.71,6.57323494]
[1732066958946,2.1093,236.73,236.71,6.57323494]
[1732066959447,2.1091,236.75,236.71,6.57323494]
[1732066959647,2.1091,236.75,236.73,6.57323494]
[1732066959953,8.4468408,236.78,236.73,6.57323494]
[1732066960151,8.4468408,236.77,236.73,6.57323494]
[1732066960360,2.34,236.8,236.73,6.57323494]
[1732066960655,2.109,236.76,236.73,6.57323494]
[1732066960951,8.44808284,236.78,236.73,6.57323494]
[1732066961342,2.1091,236.75,236.73,6.57323494]
[1732066961542,2.34,236.8,236.73,6.57323494]
[1732066961747,18.42346525,236.79,236.73,6.57323494]
[1732066961948,8.44800009,236.78,236.73,6.57323494]
[1732066962144,2.34,236.8,236.71,6.57323494]
[1732066962145,8.44800009,236.77,236.71,6.57323494]
[1732066962345,8.44800009,236.76,236.71,6.57323494]
[1732066962548,6.57323494,236.79,236.71,6.57323494]
[1732066962850,8.44891425,236.78,236.71,6.57323494]
[1732066963041,18.4254684,236.78,236.73,6.57323494]
[1732066963243,8.44891425,236.77,236.73,6.57323494]
[1732066963445,8.44891425,236.76,236.73,6.57323494]
[1732066963649,175.95759891,236.84,236.67,2.4738]
[1732066963650,175.95759891,236.84,236.75,6.57323494]
[1732066963847,20.76932492,236.83,236.75,6.57323494]
[1732066964047,18.42932492,236.82,236.75,6.57323494]
[1732066964351,18.42932492,236.81,236.75,6.57323494]
[1732066964551,8.45069448,236.81,236.77,6.57323494]
[1732066964753,2.1088,236.78,236.77,6.57323494]
[1732066965151,8.45069448,236.79,236.77,6.57323494]
[1732066965851,2.1088,236.78,236.77,6.57323494]
[1732066966346,20.53815819,236.78,236.77,6.57323494]
[1732066967250,18.42935819,236.78,236.73,2.34]
[1732066967445,8.45069448,236.77,236.73,4.4492]
[1732066967653,8.45069448,236.83,236.76,6.57323494]
[1732066967847,9.9797635,236.82,236.76,6.57323494]
[1732066968247,2.1088,236.78,236.76,6.57323494]
[1732066969252,8.451862,236.77,236.76,6.57323494]
[1732066969560,8.451862,236.77,236.71,2.1094]
[1732066969854,174.77529891,236.84,236.74,6.57323494]
[1732066969855,8.451862,236.76,236.74,6.57323494]
[1732066970051,8.451862,236.75,236.67,2.4738]
[1732066970255,8.451862,236.74,236.71,6.57323494]
[1732066970755,6.57323494,236.75,236.69,6.57323494]
[1732066970953,8.451862,236.73,236.69,6.57323494]
[1732066971148,6.57323494,236.75,236.67,6.57323494]
[1732066971149,2.1097,236.68,236.67,6.57323494]
[1732066972545,10.56406831,236.68,236.67,6.57323494]
[1732066972747,2.11,236.64,236.61,2.4268]
[1732066973552,8.45436831,236.68,236.6,1.2651]
[1732066973749,9.98029295,236.67,236.59,0.30808]
[1732066973949,8.45436831,236.68,236.59,0.30808]
[1732066974148,9.97987557,236.67,236.59,0.30808]
[1732066974457,177.11529891,236.73,236.59,0.30808]
[1732066974646,2.34,236.73,236.59,0.30808]
[1732066974849,18.43042888,236.72,236.59,0.30808]
[1732066975151,8.45107273,236.71,236.59,0.30808]
[1732066975347,2.1101,236.64,236.59,0.30808]
[1732066976554,2.34,236.73,236.61,12.38571339]
[1732066976747,10.27541339,236.71,236.59,0.30808]
[1732066976953,10.27541339,236.68,236.59,0.30808]
[1732066977154,2.1104,236.6,236.59,0.30808]
[1732066978756,2.1107,236.57,236.54,10.27541339]
[1732066980356,2.1107,236.57,236.52,2.1111]
[1732066982258,2.1104,236.6,236.54,12.38631339]
[1732066982554,2.1104,236.6,236.54,10.27541339]
[1732066983059,2.1104,236.6,236.57,10.27541339]
[1732066983360,2.34,236.67,236.57,10.27541339]
[1732066984264,2.1104,236.61,236.57,10.27541339]
[1732066984758,2.34,236.67,236.6,10.27541339]
[1732066985160,2.1099,236.66,236.6,10.27541339]
[1732066985962,2.11,236.65,236.6,10.27541339]
[1732066986662,1.1692,236.75,236.6,10.27541339]
[1732066986967,2.1098,236.67,236.63,10.27541339]
[1732066988059,1.1692,236.75,236.66,10.27541339]
[1732066988259,2.1096,236.69,236.66,10.27541339]
[1732066988866,2.1095,236.71,236.66,10.27541339]
[1732066989077,1.1744,236.77,236.66,10.27541339]
[1732066989078,2.34,236.76,236.66,10.27541339]
[1732066990973,2.34,236.76,236.66,12.38521339]
[1732066991375,2.34,236.76,236.66,10.27541339]
[1732066991578,2.34,236.76,236.69,10.27541339]
[1732066991579,2.1093,236.72,236.69,10.27541339]
[1732066991983,2.34,236.76,236.66,10.27541339]
[1732066992380,2.1094,236.71,236.66,12.38521339]
[1732066992581,2.1094,236.71,236.7,6.5734743]
[1732066992975,2.1091,236.75,236.7,6.5734743]
[1732066993180,8.44929643,236.8,236.75,6.5734743]
[1732066993381,8.44986475,236.79,236.75,6.5734743]
[1732066993679,3.5655,236.81,236.75,6.5734743]
[1732066993881,8.45015377,236.8,236.75,6.5734743]
[1732066994386,2.1089,236.76,236.75,6.5734743]
[1732066995090,6.5734743,236.78,236.7,6.5734743]
[1732066995784,6.5734743,236.78,236.72,6.5734743]
[1732066996182,6.5734743,236.8,236.74,6.5734743]
[1732066996379,2.109,236.75,236.74,6.5734743]
[1732066997387,8.44982285,236.79,236.72,6.5734743]
[1732066997589,2.1092,236.73,236.72,6.5734743]
[1732066998180,2.1092,236.73,236.7,6.5734743]
[1732066998386,2.1093,236.72,236.7,6.5734743]
[1732066999085,6.5734743,236.76,236.62,6.041]
[1732066999291,6.5734743,236.73,236.66,6.5734743]
[1732066999495,6.5734743,236.69,236.56,2.32]
[1732066999690,2.1101,236.64,236.62,6.5734743]
[1732066999890,8.8934743,236.69,236.62,6.5734743]
[1732067000297,2.1101,236.63,236.62,6.5734743]
[1732067000597,2.1101,236.63,236.58,12.38958421]
[1732067001102,2.1101,236.63,236.62,0.32572]
[1732067006199,4.4301,236.63,236.62,0.32572]
[1732067006396,2.32,236.63,236.52,2.5166]
[1732067009199,2.1107,236.57,236.52,2.5166]
[1732067010307,2.32,236.63,236.52,2.5166]
[1732067010506,2.1107,236.56,236.52,2.5166]
[1732067012107,12.59908421,236.63,236.5,10.27908421]
[1732067012407,10.27908421,236.6,236.46,11.49228421]
[1732067012608,10.27908421,236.6,236.46,1.2132]
[1732067012911,1.2606,236.62,236.53,10.27908421]
[1732067013110,2.1108,236.55,236.53,10.27908421]
[1732067013504,1.2606,236.62,236.53,10.27908421]
[1732067013706,2.1107,236.57,236.53,10.27908421]
[1732067013905,2.32,236.63,236.53,10.27908421]
[1732067014210,2.1106,236.58,236.53,12.39008421]
[1732067014411,3.5772,236.64,236.56,10.27908421]
[1732067015013,2.1106,236.58,236.56,10.27908421]
[1732067015811,2.32,236.64,236.56,10.27908421]
[1732067016506,2.1103,236.61,236.56,10.27908421]
[1732067016709,2.32,236.66,236.59,10.27908421]
[1732067017109,2.1103,236.62,236.59,10.27908421]
[1732067017310,2.32,236.66,236.59,10.27908421]
[1732067017506,27.96850365,236.73,236.65,10.27908421]
[1732067017808,1.2937,236.79,236.68,10.27908421]
[1732067018115,2.32,236.78,236.68,10.27908421]
[1732067018318,2.1095,236.7,236.68,10.27908421]
[1732067018608,2.32,236.78,236.68,10.27908421]
[1732067018916,2.1094,236.71,236.68,10.27908421]
[1732067019115,2.32,236.78,236.68,10.27908421]
[1732067019318,9.97171944,236.77,236.68,10.27908421]
[1732067019510,9.97171944,236.77,236.58,2.1105]
[1732067019511,2.1095,236.7,236.58,2.1105]
[1732067019713,2.1095,236.7,236.64,10.27908421]
[1732067019714,2.32,236.7,236.64,10.27908421]
[1732067020211,2.1099,236.66,236.64,10.27908421]
[1732067022108,2.1101,236.63,236.58,10.27908421]
[1732067022314,2.32,236.7,236.58,10.27908421]
[1732067022615,8.44231449,236.69,236.58,10.27908421]
[1732067022918,2.1103,236.61,236.58,10.27908421]
[1732067024120,2.32,236.61,236.37,35.46474627]
[1732067024315,2.32,236.61,236.46,12.39068421]
[1732067024316,8.44082118,236.6,236.46,12.39068421]
[1732067024512,2.32,236.61,236.46,12.39068421]
[1732067024918,2.1109,236.54,236.49,10.27908421]
[1732067025113,12.66,236.63,236.49,10.27908421]
[1732067025416,10.75877951,236.62,236.49,10.27908421]
[1732067025617,2.1108,236.55,236.49,10.27908421]
[1732067026518,2.1106,236.58,236.52,12.39018421]
[1732067027615,2.1106,236.58,236.55,10.27908421]
[1732067027818,2.1105,236.6,236.55,12.38988421]
[1732067028022,2.1105,236.6,236.55,10.27908421]
[1732067028318,2.32,236.63,236.55,10.27908421]
[1732067029117,2.1104,236.6,236.55,10.27908421]
[1732067029523,2.1109,236.54,236.47,2.1115]
[1732067029818,2.32,236.57,236.48,10.27908421]
[1732067030121,2.32,236.58,236.48,10.27908421]
[1732067030427,2.32,236.58,236.45,10.27908421]
[1732067031022,2.32,236.58,236.44,12.82736729]
[1732067031227,2.32,236.58,236.28,10.29126729]
[1732067031228,10.29126729,236.56,236.41,10.29126729]
[1732067031418,2.1117,236.45,236.41,10.29126729]
[1732067031822,2.32,236.51,236.38,10.29126729]
[1732067033020,2.1121,236.41,236.38,10.29126729]
[1732067033524,2.32,236.44,236.15,72.60724344]
[1732067033827,10.29126729,236.39,236.24,10.29126729]
[1732067035125,10.29126729,236.33,236.21,2.4843]
[1732067035525,2.32,236.32,236.21,2.4843]
[1732067036230,10.29126729,236.3,236.16,10.29126729]
[1732067036723,2.1138,236.22,236.14,1.2796]
[1732067037526,2.1138,236.22,235.93,5.06733936]
[1732067037527,2.1143,236.17,236.08,2.115]
[1732067037730,2.32,236.17,236.06,2.3979]
[1732067038427,2.1144,236.16,236.06,4.5131]
[1732067038625,2.1144,236.16,236.06,2.3979]
[1732067038824,2.32,236.18,236.06,2.3979]
[1732067039026,2.32,236.18,236.08,2.115]
[1732067039027,2.1143,236.17,236.08,2.115]
[1732067039332,2.32,236.18,236.07,1.2483]
[1732067039835,2.32,236.18,235.81,12.66]
[1732067040026,16.51005593,236.2,236.03,16.51005593]
[1732067040227,2.32,236.19,236.03,16.51005593]
[1732067040431,2.1144,236.16,236.06,2.1152]
[1732067040629,16.51005593,236.24,236.03,16.51005593]
[1732067040831,2.32,236.23,236.07,16.51005593]
[1732067041132,2.1142,236.18,236.08,2.4645]
[1732067041333,2.32,236.23,236.08,2.4645]
[1732067042034,12.66,236.18,235.94,1.2483]
[1732067042230,12.66,236.16,235.98,16.51005593]
[1732067042430,29.17005593,236.16,235.98,16.51005593]
[1732067043034,2.1149,236.1,236.02,2.1155]
[1732067043335,2.32,236.11,235.98,18.83005593]
[1732067043528,2.32,236.13,235.98,18.83005593]
[1732067044037,16.51005593,236.12,235.94,1.2483]
[1732067044334,12.66,236.11,235.94,1.2483]
[1732067044541,13.8411,236.11,235.94,1.2483]
[1732067044736,2.1155,236.03,235.94,3.3645]
[1732067046336,2.1155,236.03,235.71,1.85730437]
[1732067046337,29.17005593,236.02,235.81,16.51005593]
[1732067046641,29.17005593,236.02,235.82,1.9925483]
[1732067046841,2.1163,235.94,235.83,0.7781483]
[1732067047036,16.51005593,236.02,235.82,1.2144]
[1732067047237,2.34,236.01,235.83,17.28828173]
[1732067047437,2.34,236.01,235.83,16.51005593]
[1732067047639,2.116,235.98,235.83,16.51005593]
[1732067047839,2.34,236.01,235.83,16.51005593]
[1732067048037,2.34,236.02,235.87,16.51005593]
[1732067048233,2.1154,236.04,235.88,2.34]
[1732067048433,2.34,236.03,235.88,2.34]
[1732067048634,2.34,236.02,235.88,2.34]
[1732067049335,2.1157,236.01,235.88,2.34]
[1732067049836,4.4556,236.02,235.88,2.34]
[1732067050044,16.51005593,236.06,235.88,2.34]
[1732067050335,16.51005593,235.98,235.82,1.2144]
[1732067050542,2.34,235.97,235.82,1.2144]
[1732067050747,2.1163,235.94,235.82,1.2144]
[1732067053542,2.34,235.99,235.83,19.62828951]
[1732067053739,2.34,235.99,235.84,0.77823358]
[1732067053946,2.34,235.99,235.74,16.51005593]
[1732067053947,16.51005593,235.94,235.74,16.51005593]
[1732067054144,2.34,235.93,235.75,0.77841394]
[1732067054444,2.34,235.93,235.76,0.77841394]
[1732067054643,2.1169,235.87,235.74,18.85005593]
[1732067054843,2.1169,235.87,235.75,0.77845802]
[1732067055139,2.34,235.87,235.76,0.77845802]
[1732067055345,2.34,235.87,235.74,18.85005593]
[1732067055537,2.34,235.87,235.75,0.77845977]
[1732067055741,2.34,235.87,235.76,0.77845977]
[1732067056046,2.34,235.87,235.74,18.85005593]
[1732067056248,2.34,235.87,235.75,0.77846048]
[1732067056546,2.34,235.87,235.76,0.77846048]
[1732067056745,2.34,235.87,235.74,18.85005593]
[1732067056943,2.34,235.87,235.75,0.77846608]
[1732067057246,4.4569,235.87,235.74,18.85005593]
[1732067057443,4.4569,235.87,235.75,0.77847147]
[1732067057649,4.4569,235.87,235.74,18.85005593]
[1732067057943,4.4569,235.87,235.75,0.77846824]
[1732067058138,4.4569,235.87,235.76,0.77846824]
[1732067058348,2.34,235.87,235.57,1.85834006]
[1732067058545,2.34,235.87,235.65,16.51005593]
[1732067058745,2.4899,235.86,235.66,0.77860456]
[1732067059037,16.51005593,235.85,235.67,0.77860456]
[1732067059242,17.80605593,235.85,235.68,0.77860456]
[1732067059445,17.80605593,235.85,235.69,0.77860456]
[1732067059740,17.80605593,235.85,235.65,18.91005593]
[1732067059938,17.80605593,235.85,235.66,0.77864364]
[1732067060143,2.1177,235.79,235.7,2.1184]
[1732067060446,2.4,235.79,235.7,2.1184]
[1732067060646,2.1179,235.77,235.69,2.1185]
[1732067061843,1.296,235.85,235.69,16.51005593]